bitfinex-derivatives/quotes_SOLF0:USTF0_20260207
["timestamp","ask_amount","ask_price","bid_price","bid_amount"]
[1770502296702,73.68634608,88.598,88.57,3.70723804]
[1770502297303,73.68634608,88.598,88.58,3.70723804]
[1770502298205,73.68634608,88.615,88.58,3.70723804]
[1770502301200,73.68634608,88.615,88.59,3.70723804]
[1770502302102,73.68634608,88.615,88.58,3.70723804]
[1770502306803,73.68634608,88.615,88.574,71.24486662]
[1770502308307,73.68634608,88.612,88.57,3.70723804]
[1770502311708,73.68634608,88.609,88.57,3.70723804]
[1770502311903,73.68634608,88.607,88.55,3.70723804]
[1770502312107,73.68634608,88.605,88.55,3.70723804]
[1770502312308,73.68634608,88.603,88.55,3.70723804]
[1770502312508,73.68634608,88.601,88.55,3.70723804]
[1770502312714,73.68634608,88.591,88.55,3.70723804]
[1770502313009,73.68634608,88.591,88.56,3.70723804]
[1770502313516,73.68634608,88.591,88.57,3.70723804]
[1770502313716,73.68634608,88.613,88.57,3.70723804]
[1770502313911,73.68634608,88.611,88.57,3.70723804]
[1770502314108,73.68634608,88.609,88.558,71.24486662]
[1770502314417,73.68634608,88.609,88.56,3.70723804]
[1770502315219,73.68634608,88.607,88.56,3.70723804]
[1770502316014,73.68634608,88.607,88.57,3.70723804]
[1770502321217,73.68634608,88.605,88.56,85.12150466]
[1770502321408,83.84924608,88.618,88.571,71.24486662]
[1770502321612,73.68634608,88.616,88.58,3.70723804]
[1770502321815,73.68634608,88.614,88.571,71.24486662]
[1770502322118,8.49689846,88.613,88.571,71.24486662]
[1770502322317,8.49689846,88.612,88.571,71.24486662]
[1770502322519,73.68634608,88.627,88.59,74.95210466]
[1770502322720,8.49968395,88.626,88.59,74.95210466]
[1770502322916,8.49968395,88.625,88.59,74.95210466]
[1770502323220,73.68634608,88.641,88.6,3.70723804]
[1770502323412,73.68634608,88.639,88.6,3.70723804]
[1770502323611,82.18523906,88.638,88.6,3.70723804]
[1770502323814,8.49889298,88.637,88.6,3.70723804]
[1770502324012,8.49889298,88.636,88.61,3.70723804]
[1770502324318,73.68634608,88.65,88.61,3.70723804]
[1770502324515,82.18058317,88.649,88.61,3.70723804]
[1770502324719,73.68634608,88.647,88.605,71.24486662]
[1770502324921,82.18058317,88.646,88.605,71.24486662]
[1770502325124,8.49423709,88.645,88.605,71.24486662]
[1770502325418,8.49423709,88.644,88.605,71.24486662]
[1770502325621,8.49423709,88.643,88.605,71.24486662]
[1770502325921,8.49423709,88.642,88.605,71.24486662]
[1770502326125,8.49423709,88.641,88.605,71.24486662]
[1770502326417,8.49423709,88.64,88.605,71.24486662]
[1770502326613,73.68634608,88.646,88.605,71.24486662]
[1770502326813,8.4893458,88.645,88.605,71.24486662]
[1770502327013,8.4893458,88.644,88.605,71.24486662]
[1770502327209,73.68634608,88.646,88.605,71.24486662]
[1770502327210,8.4893458,88.643,88.605,71.24486662]
[1770502327414,8.4893458,88.642,88.605,71.24486662]
[1770502327618,8.4893458,88.641,88.605,71.24486662]
[1770502327918,73.68634608,88.646,88.605,71.24486662]
[1770502328121,8.48845221,88.645,88.605,71.24486662]
[1770502328318,8.48845221,88.644,88.605,71.24486662]
[1770502328522,8.48845221,88.643,88.605,71.24486662]
[1770502328717,8.48845221,88.642,88.605,71.24486662]
[1770502328917,8.48845221,88.641,88.605,71.24486662]
[1770502329118,73.68634608,88.646,88.605,71.24486662]
[1770502329317,74.94278166,88.629,88.579,10.1673]
[1770502329519,74.94278166,88.629,88.575,77.27523491]
[1770502329725,3.70723804,88.62,88.575,77.27523491]
[1770502329924,78.6500197,88.62,88.575,77.27523491]
[1770502333826,74.62277838,88.609,88.56,71.03822112]
[1770502334028,74.62277838,88.599,88.548,71.03822112]
[1770502334227,8.49651879,88.598,88.548,71.03822112]
[1770502334429,8.49651879,88.597,88.548,71.03822112]
[1770502334626,74.62277838,88.599,88.548,71.03822112]
[1770502334627,8.49651879,88.596,88.548,71.03822112]
[1770502334822,74.62277838,88.599,88.55,71.03822112]
[1770502335131,83.12285175,88.598,88.55,71.03822112]
[1770502335325,8.50007337,88.597,88.55,71.03822112]
[1770502335526,8.50007337,88.596,88.55,71.03822112]
[1770502335825,8.50007337,88.595,88.55,71.03822112]
[1770502336029,8.50007337,88.594,88.55,71.03822112]
[1770502336228,8.50007337,88.593,88.55,71.03822112]
[1770502336425,8.50007337,88.592,88.552,71.03822112]
[1770502336625,3.70723804,88.59,88.53,3.70723804]
[1770502336827,74.62277838,88.579,88.531,71.03822112]
[1770502337030,74.62277838,88.577,88.531,71.03822112]
[1770502337233,8.50246977,88.576,88.531,71.03822112]
[1770502337432,8.50246977,88.575,88.531,71.03822112]
[1770502337627,8.50644268,88.574,88.531,71.03822112]
[1770502337936,74.62277838,88.577,88.533,10.1725]
[1770502338127,8.5056897,88.576,88.533,10.1725]
[1770502338327,8.5056897,88.575,88.533,10.1725]
[1770502338528,74.62277838,88.577,88.533,10.1725]
[1770502338835,8.50451779,88.576,88.533,10.1725]
[1770502339035,74.62277838,88.577,88.533,10.1725]
[1770502339234,8.5033835,88.576,88.533,81.21072112]
[1770502339435,8.5033835,88.575,88.533,81.21072112]
[1770502339636,74.62277838,88.577,88.533,81.21072112]
[1770502339937,8.50338402,88.576,88.533,81.21072112]
[1770502340136,74.62277838,88.577,88.533,81.21072112]
[1770502340438,8.50228172,88.576,88.533,81.21072112]
[1770502340637,74.62277838,88.577,88.533,81.21072112]
[1770502340837,8.50228172,88.576,88.533,81.21072112]
[1770502341038,74.62277838,88.577,88.533,81.21072112]
[1770502344539,74.62277838,88.589,88.541,71.03822112]
[1770502344734,74.62277838,88.587,88.541,71.03822112]
[1770502345041,83.11458781,88.586,88.541,71.03822112]
[1770502345237,8.49180943,88.585,88.55,3.70723804]
[1770502345437,74.62277838,88.586,88.55,3.70723804]
[1770502345739,8.49893416,88.585,88.55,3.70723804]
[1770502345941,74.62277838,88.586,88.55,3.70723804]
[1770502346441,74.62277838,88.586,88.544,81.20942112]
[1770502346739,74.62277838,88.586,88.434,35.18269067]
[1770502346740,74.62277838,88.546,88.465,71.03822112]
[1770502346929,74.62277838,88.519,88.465,71.03822112]
[1770502347333,74.62277838,88.519,88.47,3.70723804]
[1770502347530,74.62277838,88.519,88.471,71.03822112]
[1770502347736,74.62277838,88.499,88.457,71.03822112]
[1770502347935,74.62277838,88.499,88.46,3.70723804]
[1770502348637,74.62277838,88.515,88.46,74.74545916]
[1770502348836,74.62277838,88.515,88.47,3.70723804]
[1770502351056,74.62277838,88.515,88.46,74.74545916]
[1770502351354,74.62277838,88.509,88.46,71.03822112]
[1770502352446,74.62277838,88.509,88.46,74.74545916]
[1770502353346,74.62277838,88.509,88.46,71.03822112]
[1770502353851,74.62277838,88.523,88.46,80.32801061]
[1770502354752,74.62277838,88.523,88.472,71.03822112]
[1770502355353,9.28978949,88.56,88.41,9.28978949]
[1770502355354,74.62277838,88.547,88.481,71.03822112]
[1770502355856,74.62277838,88.547,88.495,10.1769]
[1770502356356,74.62277838,88.547,88.505,10.1757]
[1770502357356,74.62277838,88.547,88.426,20.3696]
[1770502357357,74.62277838,88.547,88.466,67.30785138]
[1770502358855,74.62277838,88.547,88.488,10.1777]
[1770502360150,74.62277838,88.547,88.501,67.30785138]
[1770502361851,74.62277838,88.547,88.509,10.1752]
[1770502365156,10.167,88.582,88.519,10.1741]
[1770502365357,10.1657,88.594,88.521,67.30785138]
[1770502366750,10.1657,88.594,88.531,10.1728]
[1770502367355,71.35890876,88.593,88.531,10.1728]
[1770502369965,71.35890876,88.593,88.536,10.1721]
[1770502370158,71.35890876,88.591,88.536,10.1721]
[1770502372056,8.61661908,88.59,88.536,10.1721]
[1770502372256,79.97552784,88.589,88.536,10.1721]
[1770502372566,71.35890876,88.589,88.536,10.1721]
[1770502373065,71.35890876,88.587,88.536,10.1721]
[1770502373457,71.35890876,88.587,88.55,3.70842993]
[1770502373859,71.35890876,88.587,88.54,3.70842993]
[1770502375166,71.35890876,88.585,88.54,3.70842993]
[1770502375366,71.35890876,88.583,88.54,3.70842993]
[1770502375567,71.35890876,88.581,88.54,3.70842993]
[1770502376270,71.35890876,88.579,88.541,10.1716]
[1770502376569,10.36879318,88.611,88.56,3.70842993]
[1770502376767,8.78867893,88.61,88.56,3.70842993]
[1770502376968,10.36879318,88.611,88.56,3.70842993]
[1770502376969,8.78867893,88.609,88.56,3.70842993]
[1770502377171,8.78867893,88.608,88.56,3.70842993]
[1770502377370,8.78867893,88.607,88.56,3.70842993]
[1770502377564,8.78867893,88.606,88.56,3.70842993]
[1770502377764,8.78867893,88.605,88.56,3.70842993]
[1770502377966,8.78867893,88.604,88.56,3.70842993]
[1770502378168,8.78867893,88.603,88.56,3.70842993]
[1770502378364,71.35890876,88.601,88.56,3.70842993]
[1770502378561,71.35890876,88.599,88.56,3.70842993]
[1770502378765,71.35890876,88.597,88.56,3.70842993]
[1770502378966,71.35890876,88.595,88.56,3.70842993]
[1770502379272,71.35890876,88.593,88.56,3.70842993]
[1770502379464,80.14758769,88.592,88.56,3.70842993]
[1770502379659,71.35890876,88.59,88.56,3.70842993]
[1770502379873,80.14758769,88.589,88.56,3.70842993]
[1770502380063,8.78867893,88.588,88.56,3.70842993]
[1770502380260,71.35890876,88.579,88.52,3.70842993]
[1770502380571,71.35890876,88.569,88.51,3.70842993]
[1770502380760,81.52760876,88.567,88.51,3.70842993]
[1770502380965,71.35890876,88.565,88.51,3.70842993]
[1770502381165,71.35890876,88.563,88.51,3.70842993]
[1770502381464,71.35890876,88.561,88.51,3.70842993]
[1770502381663,3.70842993,88.57,88.51,3.70842993]
[1770502381664,71.35890876,88.559,88.51,3.70842993]
[1770502381870,71.35890876,88.557,88.51,3.70842993]
[1770502382074,71.35890876,88.549,88.508,67.30785138]
[1770502382262,71.35890876,88.547,88.508,67.30785138]
[1770502382460,71.35890876,88.545,88.508,67.30785138]
[1770502382662,8.78867893,88.544,88.508,67.30785138]
[1770502382863,8.78867893,88.543,88.508,67.30785138]
[1770502383071,8.78867893,88.542,88.508,67.30785138]
[1770502383272,75.06733869,88.54,88.491,67.30785138]
[1770502383469,71.35890876,88.538,88.491,67.30785138]
[1770502384774,71.35890876,88.538,88.487,67.30785138]
[1770502385864,9.28405779,88.56,88.474,75.91244535]
[1770502385865,67.98274633,88.536,88.474,75.91244535]
[1770502386173,13.76570653,88.564,88.474,75.91244535]
[1770502386174,67.98274633,88.532,88.474,65.73314535]
[1770502386376,67.98274633,88.53,88.474,65.73314535]
[1770502386675,67.98274633,88.526,88.461,75.91394535]
[1770502386875,67.98274633,88.524,88.461,75.91394535]
[1770502387078,67.98274633,88.522,88.461,75.91394535]
[1770502387274,67.98274633,88.52,88.461,75.91394535]
[1770502387575,67.98274633,88.518,88.461,75.91394535]
[1770502387773,67.98274633,88.516,88.461,75.91394535]
[1770502387974,67.98274633,88.514,88.461,75.91394535]
[1770502388170,67.98274633,88.512,88.461,75.91394535]
[1770502389076,67.98274633,88.536,88.472,65.73314535]
[1770502389378,67.98274633,88.534,88.472,65.73314535]
[1770502389576,67.98274633,88.532,88.472,65.73314535]
[1770502389771,67.98274633,88.53,88.472,65.73314535]
[1770502389973,67.98274633,88.528,88.472,65.73314535]
[1770502390167,67.98274633,88.526,88.472,65.73314535]
[1770502390374,67.98274633,88.524,88.459,10.181]
[1770502390676,67.98274633,88.522,88.459,75.91414535]
[1770502390871,67.98274633,88.52,88.459,75.91414535]
[1770502391070,67.98274633,88.518,88.459,75.91414535]
[1770502391271,10.1734,88.526,88.459,75.91414535]
[1770502391272,67.98274633,88.516,88.459,75.91414535]
[1770502391476,67.98274633,88.514,88.459,75.91414535]
[1770502391671,64.37966613,88.512,88.459,75.91414535]
[1770502392978,64.37966613,88.512,88.459,65.73314535]
[1770502393278,64.37966613,88.537,88.459,65.73314535]
[1770502393478,9.28405779,88.54,88.459,65.73314535]
[1770502393479,64.37966613,88.535,88.459,65.73314535]
[1770502393679,64.37966613,88.533,88.461,64.11296658]
[1770502393881,64.37966613,88.531,88.461,64.11296658]
[1770502394076,64.37966613,88.529,88.484,74.29106658]
[1770502394377,64.37966613,88.543,88.461,64.11296658]
[1770502394585,64.37966613,88.529,88.461,64.11296658]
[1770502394779,64.37966613,88.527,88.461,64.11296658]
[1770502394982,64.37966613,88.525,88.461,64.11296658]
[1770502395182,64.37966613,88.523,88.461,64.11296658]
[1770502395378,64.37966613,88.521,88.461,64.11296658]
[1770502395578,64.37966613,88.519,88.461,74.29376658]
[1770502395778,64.37966613,88.517,88.461,74.29376658]
[1770502395979,64.37966613,88.515,88.461,74.29376658]
[1770502396180,10.1732,88.528,88.461,74.29376658]
[1770502396181,64.37966613,88.513,88.461,74.29376658]
[1770502396382,73.17054274,88.512,88.461,74.29376658]
[1770502396684,73.17054274,88.511,88.461,74.29376658]
[1770502396878,8.79087661,88.51,88.461,74.29376658]
[1770502397076,64.37966613,88.511,88.461,74.29376658]
[1770502397077,8.79087661,88.509,88.461,74.29376658]
[1770502397277,64.37966613,88.511,88.461,74.29376658]
[1770502397278,8.79087661,88.508,88.461,74.29376658]
[1770502397579,8.79087661,88.507,88.461,74.29376658]
[1770502397883,8.79087661,88.506,88.461,74.29376658]
[1770502398082,8.79087661,88.505,88.461,74.29376658]
[1770502398283,73.17054274,88.504,88.461,64.11296658]
[1770502398483,73.17054274,88.503,88.461,64.11296658]
[1770502398685,8.79087661,88.502,88.461,64.11296658]
[1770502398873,64.37966613,88.503,88.461,64.11296658]
[1770502399073,8.78856183,88.502,88.461,64.11296658]
[1770502399278,64.37966613,88.503,88.461,64.11296658]
[1770502399473,64.37966613,88.503,88.448,10.1823]
[1770502399679,64.37966613,88.501,88.448,10.1823]
[1770502399984,64.37966613,88.499,88.448,10.1823]
[1770502400185,64.37966613,88.497,88.448,10.1823]
[1770502402489,64.37966613,88.497,88.445,64.11296658]
[1770502402684,64.37966613,88.495,88.445,64.11296658]
[1770502403889,64.37966613,88.503,88.447,64.11296658]
[1770502404587,64.37966613,88.503,88.421,64.11296658]
[1770502404785,64.37966613,88.501,88.421,64.11296658]
[1770502404992,64.37966613,88.499,88.421,64.11296658]
[1770502405683,64.37966613,88.499,88.438,64.11296658]
[1770502406486,64.37966613,88.496,88.438,64.11296658]
[1770502407789,64.37966613,88.492,88.438,64.11296658]
[1770502407986,64.37966613,88.492,88.401,64.11296658]
[1770502408290,64.37966613,88.49,88.424,64.11296658]
[1770502409086,64.37966613,88.49,88.427,10.1847]
[1770502409390,64.37966613,88.49,88.427,74.29766658]
[1770502409894,64.37966613,88.483,88.427,64.11296658]
[1770502411789,64.37966613,88.48,88.43,64.11296658]
[1770502412389,64.37966613,88.48,88.415,64.11296658]
[1770502413190,64.37966613,88.469,88.415,64.11296658]
[1770502413588,64.37966613,88.499,88.421,64.11296658]
[1770502413789,64.37966613,88.497,88.421,64.11296658]
[1770502413995,64.37966613,88.495,88.421,64.11296658]
[1770502414690,64.37966613,88.495,88.431,64.11296658]
[1770502415687,64.37966613,88.495,88.433,76.96570424]
[1770502416100,67.88130643,88.493,88.433,76.96570424]
[1770502417393,67.88130643,88.493,88.45,3.7167793]
[1770502418094,67.88130643,88.493,88.46,3.7167793]
[1770502418400,67.88130643,88.493,88.45,70.49848354]
[1770502418600,67.88130643,88.493,88.45,3.7167793]
[1770502419194,67.88130643,88.491,88.45,3.7167793]
[1770502419399,67.88130643,88.491,88.44,3.7167793]
[1770502420098,67.88130643,88.489,88.44,3.7167793]
[1770502420695,67.88130643,88.489,88.45,3.7167793]
[1770502422000,67.88130643,88.489,88.44,70.49848354]
[1770502422307,67.88130643,88.48,88.44,66.78170424]
[1770502423414,67.88130643,88.48,88.45,3.7167793]
[1770502424711,67.88130643,88.48,88.44,70.49848354]
[1770502424912,67.88130643,88.469,88.415,66.78170424]
[1770502425212,67.88130643,88.469,88.364,1.96774148]
[1770502425213,67.88130643,88.449,88.39,3.7167793]
[1770502425412,67.88130643,88.447,88.39,3.7167793]
[1770502425614,67.88130643,88.445,88.39,3.7167793]
[1770502425915,10.1836,88.437,88.39,3.7167793]
[1770502426209,67.88130643,88.429,88.309,20.3968]
[1770502426415,10.1859,88.418,88.347,10.1939]
[1770502426603,10.1859,88.418,88.37,3.7167793]
[1770502427006,10.1859,88.418,88.371,66.78170424]
[1770502427207,10.1859,88.418,88.265,27.94921698]
[1770502427208,67.88130643,88.406,88.353,66.78170424]
[1770502427409,8.65585471,88.405,88.36,66.78170424]
[1770502427613,67.88130643,88.433,88.36,66.78170424]
[1770502427811,67.88130643,88.431,88.36,66.78170424]
[1770502428009,10.1861,88.415,88.36,66.78170424]
[1770502428209,67.88130643,88.429,88.36,76.09162863]
[1770502428413,9.30992439,88.46,88.36,76.09162863]
[1770502428414,67.88130643,88.427,88.36,76.09162863]
[1770502428617,8.6526055,88.426,88.36,76.09162863]
[1770502428818,67.88130643,88.427,88.362,66.78170424]
[1770502429111,8.65370695,88.426,88.362,66.78170424]
[1770502429319,67.88130643,88.44,88.362,66.78170424]
[1770502429610,78.06490643,88.438,88.369,66.78170424]
[1770502429808,8.65148915,88.437,88.369,66.78170424]
[1770502430008,8.65148915,88.436,88.369,66.78170424]
[1770502430206,8.65148915,88.435,88.369,66.78170424]
[1770502430405,8.65148915,88.434,88.373,66.78170424]
[1770502430611,10.1822,88.45,88.381,66.78170424]
[1770502430811,20.65533179,88.495,88.381,66.78170424]
[1770502430812,78.25009961,88.445,88.381,66.78170424]
[1770502431011,67.88130643,88.441,88.368,66.78170424]
[1770502431206,13.76570653,88.458,88.368,66.78170424]
[1770502431207,67.88130643,88.439,88.368,66.78170424]
[1770502431410,67.88130643,88.437,88.368,66.78170424]
[1770502431616,8.65234193,88.438,88.368,66.78170424]
[1770502431617,10.1861,88.416,88.368,66.78170424]
[1770502432417,67.88130643,88.417,88.368,66.78170424]
[1770502432716,10.1847,88.428,88.368,66.78170424]
[1770502432917,8.64064845,88.427,88.368,66.78170424]
[1770502433116,67.88130643,88.431,88.368,66.78170424]
[1770502435717,67.88130643,88.431,88.374,66.78170424]
[1770502436724,67.88130643,88.431,88.379,66.78170424]
[1770502437827,67.88130643,88.449,88.381,66.78170424]
[1770502438217,67.88130643,88.463,88.404,66.78170424]
[1770502438927,67.88130643,88.48,88.407,66.78170424]
[1770502439227,67.88130643,88.478,88.407,66.78170424]
[1770502440732,78.06030643,88.478,88.409,66.78170424]
[1770502440927,67.88130643,88.496,88.421,66.78170424]
[1770502441122,8.64609196,88.495,88.421,66.78170424]
[1770502441323,9.30992439,88.54,88.368,20.383]
[1770502441324,67.88130643,88.535,88.447,66.78170424]
[1770502441528,67.88130643,88.533,88.447,66.78170424]
[1770502441727,67.88130643,88.531,88.447,66.78170424]
[1770502441928,67.88130643,88.529,88.447,66.78170424]
[1770502442126,67.88130643,88.527,88.447,66.78170424]
[1770502442321,67.88130643,88.525,88.447,66.78170424]
[1770502442530,67.88130643,88.523,88.447,66.78170424]
[1770502442730,10.1743,88.518,88.449,10.1822]
[1770502443027,76.53218448,88.517,88.45,66.78170424]
[1770502443225,67.88130643,88.515,88.45,66.78170424]
[1770502443421,67.88130643,88.513,88.45,66.78170424]
[1770502443620,67.88130643,88.511,88.45,66.78170424]
[1770502443828,76.53303115,88.51,88.45,66.78170424]
[1770502444132,67.88130643,88.51,88.45,66.78170424]
[1770502445124,67.88130643,88.527,88.461,66.78170424]
[1770502445326,67.88130643,88.525,88.461,66.78170424]
[1770502446330,67.88130643,88.525,88.473,62.44540774]
[1770502447535,60.39556485,88.521,88.46,71.75533213]
[1770502447727,60.39556485,88.521,88.46,62.44540774]
[1770502448835,60.39556485,88.519,88.46,62.44540774]
[1770502449629,60.39556485,88.514,88.46,62.44540774]
[1770502450237,60.39556485,88.511,88.46,62.44540774]
[1770502450425,10.175,88.512,88.46,62.44540774]
[1770502450426,60.39556485,88.509,88.46,62.44540774]
[1770502450627,60.39556485,88.508,88.46,62.44540774]
[1770502454841,63.19907507,88.537,88.462,64.94202296]
[1770502455143,63.19907507,88.535,88.462,64.94202296]
[1770502455341,63.19907507,88.533,88.462,64.94202296]
[1770502456540,63.19907507,88.533,88.476,64.94202296]
[1770502456943,63.19907507,88.533,88.481,64.94202296]
[1770502457138,10.1715,88.543,88.481,64.94202296]
[1770502457840,10.1715,88.543,88.483,64.94202296]
[1770502458040,73.37057507,88.543,88.483,64.94202296]
[1770502469343,73.37057507,88.543,88.487,64.94202296]
[1770502469539,73.37057507,88.543,88.428,33.91]
[1770502469540,73.37057507,88.543,88.51,3.71156855]
[1770502469739,73.37057507,88.543,88.501,64.94202296]
[1770502470436,63.19907507,88.543,88.501,64.94202296]
[1770502471840,63.19907507,88.558,88.53,3.71156855]
[1770502472042,3.71156855,88.59,88.53,3.71156855]
[1770502472247,71.80169092,88.589,88.53,3.71156855]
[1770502472448,63.19907507,88.575,88.53,68.65359151]
[1770502472652,63.19907507,88.575,88.54,3.71156855]
[1770502475654,63.19907507,88.575,88.54,3.70872745]
[1770502478564,10.36879318,88.619,88.55,3.70872745]
[1770502478756,62.08573144,88.598,88.56,3.70872745]
[1770502480149,62.08573144,88.598,88.57,3.70872745]
[1770502480755,62.08573144,88.598,88.56,3.70872745]
[1770502481156,62.08573144,88.62,88.57,3.70872745]
[1770502481354,10.1625,88.621,88.57,3.70872745]
[1770502481355,62.08573144,88.618,88.57,3.70872745]
[1770502481554,62.08573144,88.616,88.57,3.70872745]
[1770502481858,62.08573144,88.614,88.57,3.70872745]
[1770502482058,62.08573144,88.612,88.57,3.70872745]
[1770502482255,8.63177789,88.611,88.57,3.70872745]
[1770502482461,62.08573144,88.612,88.57,3.70872745]
[1770502482657,70.71750933,88.611,88.57,3.70872745]
[1770502482857,62.08573144,88.611,88.57,3.70872745]
[1770502483161,62.08573144,88.611,88.58,3.70872745]
[1770502486659,62.08573144,88.611,88.574,60.72052896]
[1770502487366,62.08573144,88.611,88.561,60.72052896]
[1770502489562,62.08573144,88.609,88.55,64.42925641]
[1770502489763,62.08573144,88.607,88.55,64.42925641]
[1770502489962,62.08573144,88.605,88.55,64.42925641]
[1770502490164,62.08573144,88.599,88.55,60.72052896]
[1770502490366,62.08573144,88.597,88.55,60.72052896]
[1770502491166,62.08573144,88.594,88.55,60.72052896]
[1770502491664,62.08573144,88.589,88.537,60.72052896]
[1770502492966,72.25193144,88.589,88.537,60.72052896]
[1770502493767,72.25193144,88.589,88.54,3.70872745]
[1770502494270,62.08573144,88.589,88.55,3.70872745]
[1770502494771,62.08573144,88.589,88.541,60.72052896]
[1770502495761,10.1663,88.588,88.541,60.72052896]
[1770502495957,72.25203144,88.588,88.541,60.72052896]
[1770502497767,62.08573144,88.588,88.541,60.72052896]
[1770502497970,62.08573144,88.588,88.55,3.70872745]
[1770502500866,62.08573144,88.6,88.55,64.42925641]
[1770502501973,62.08573144,88.598,88.55,64.42925641]
[1770502502771,10.1659,88.592,88.55,60.72052896]
[1770502502976,10.1659,88.592,88.55,64.42925641]
[1770502503363,10.1659,88.592,88.477,158.3397]
[1770502503364,62.08573144,88.61,88.561,60.72052896]
[1770502503568,62.08573144,88.61,88.57,64.42925641]
[1770502505276,62.08573144,88.61,88.58,3.70872745]
[1770502505967,62.08573144,88.61,88.57,64.42925641]
[1770502506168,62.08573144,88.61,88.57,60.72052896]
[1770502506771,3.70872745,88.62,88.57,60.72052896]
[1770502506971,10.1621,88.625,88.57,60.72052896]
[1770502506972,70.43602982,88.619,88.57,60.72052896]
[1770502507276,10.1621,88.625,88.57,60.72052896]
[1770502507277,70.43602982,88.618,88.57,60.72052896]
[1770502507575,10.1621,88.625,88.57,60.72052896]
[1770502507576,70.43602982,88.617,88.57,60.72052896]
[1770502507776,70.43602982,88.616,88.57,60.72052896]
[1770502508078,8.67220866,88.615,88.57,64.42925641]
[1770502508277,61.76880812,88.616,88.57,64.42925641]
[1770502508476,8.67191132,88.615,88.57,64.42925641]
[1770502508679,61.76880812,88.616,88.57,64.42925641]
[1770502508874,61.76880812,88.609,88.558,63.39508581]
[1770502509179,61.76880812,88.607,88.558,63.39508581]
[1770502509374,61.76880812,88.605,88.558,63.39508581]
[1770502509577,61.76880812,88.598,88.55,3.70872745]
[1770502509878,61.76880812,88.596,88.55,3.70872745]
[1770502510175,61.76880812,88.594,88.55,3.70872745]
[1770502510479,61.76880812,88.592,88.55,3.70872745]
[1770502510679,70.44076495,88.591,88.55,3.70872745]
[1770502510870,8.67195683,88.59,88.55,3.70872745]
[1770502511173,71.93500812,88.588,88.545,63.39508581]
[1770502511373,3.70872745,88.59,88.53,3.70872745]
[1770502511374,61.76880812,88.586,88.531,63.39508581]
[1770502511674,70.44076495,88.585,88.531,63.39508581]
[1770502511877,69.00227812,88.584,88.531,63.39508581]
[1770502512077,8.67195683,88.583,88.531,63.39508581]
[1770502512278,8.67195683,88.582,88.531,63.39508581]
[1770502512573,8.67195683,88.581,88.531,63.39508581]
[1770502512773,8.67195683,88.58,88.531,63.39508581]
[1770502513074,60.33032129,88.569,88.501,63.78747593]
[1770502513280,60.33032129,88.559,88.501,63.78747593]
[1770502513478,60.33032129,88.557,88.501,63.78747593]
[1770502513675,60.33032129,88.555,88.501,63.78747593]
[1770502513876,8.67195683,88.554,88.501,63.78747593]
[1770502514075,60.33032129,88.555,88.501,63.78747593]
[1770502514076,8.67195683,88.553,88.501,63.78747593]
[1770502514274,8.67195683,88.552,88.501,63.78747593]
[1770502514469,8.67195683,88.551,88.501,63.78747593]
[1770502514673,60.33032129,88.529,88.473,63.78747593]
[1770502514978,60.33032129,88.527,88.473,63.78747593]
[1770502515173,8.67195683,88.526,88.473,63.78747593]
[1770502515372,69.00227812,88.525,88.473,63.78747593]
[1770502515574,60.33032129,88.523,88.473,63.78747593]
[1770502515779,60.33032129,88.521,88.473,63.78747593]
[1770502515980,8.67195683,88.52,88.473,63.78747593]
[1770502516169,69.00227812,88.519,88.46,67.49620338]
[1770502516370,60.33032129,88.509,88.46,63.78747593]
[1770502516683,60.33032129,88.499,88.441,63.78747593]
[1770502517180,60.33032129,88.497,88.441,63.78747593]
[1770502517382,8.68156957,88.498,88.441,63.78747593]
[1770502517383,60.33032129,88.495,88.441,63.78747593]
[1770502517774,60.33032129,88.489,88.441,63.78747593]
[1770502517976,3.70872745,88.49,88.441,63.78747593]
[1770502517977,60.33032129,88.487,88.441,63.78747593]
[1770502518177,60.33032129,88.485,88.441,63.78747593]
[1770502518378,60.33032129,88.479,88.427,63.78747593]
[1770502519373,60.33032129,88.479,88.43,63.78747593]
[1770502526684,60.33032129,88.479,88.414,63.78747593]
[1770502526987,9.29507133,88.49,88.414,63.78747593]
[1770502526988,60.33032129,88.476,88.414,63.78747593]
[1770502527592,60.33032129,88.469,88.414,63.78747593]
[1770502527791,60.33032129,88.469,88.392,63.78747593]
[1770502528691,10.1805,88.464,88.392,63.78747593]
[1770502528887,60.33032129,88.463,88.392,63.78747593]
[1770502529593,60.33032129,88.457,88.392,63.78747593]
[1770502529995,60.33032129,88.45,88.392,63.78747593]
[1770502533495,60.33032129,88.445,88.392,63.78747593]
[1770502533996,9.29507133,88.47,88.297,158.18]
[1770502533997,60.33032129,88.441,88.379,63.78747593]
[1770502535896,61.58299821,88.431,88.379,63.78747593]
[1770502536694,61.58299821,88.429,88.379,63.78747593]
[1770502537786,61.58299821,88.441,88.379,63.78747593]
[1770502538193,61.58299821,88.441,88.383,60.63378473]
[1770502538691,61.58299821,88.441,88.387,60.63378473]
[1770502539002,10.1808,88.462,88.391,60.63378473]
[1770502539188,10.1808,88.462,88.406,10.1871]
[1770502539189,61.58299821,88.461,88.406,10.1871]
[1770502539393,61.58299821,88.461,88.43,3.71837337]
[1770502539900,61.58299821,88.484,88.44,3.71837337]